bitfinex/quotes_SOLUSD_20250126
["timestamp","ask_amount","ask_price","bid_price","bid_amount"]
[1737897274599,23.776884,256.06,256.05,0.063]
[1737897275980,24.16678905,256.06,256.05,0.063]
[1737897279195,43.776884,255.99,255.98,0.063]
[1737897279394,44.16678905,255.99,255.98,0.063]
[1737897280293,43.776884,255.99,255.98,0.063]
[1737897280489,47.683284,255.99,255.98,0.063]
[1737897281707,23.776884,255.98,255.96,0.0001]
[1737897281892,23.776884,255.98,255.92,0.063]
[1737897281893,20.0,255.95,255.92,0.063]
[1737897282213,24.16678905,255.94,255.92,0.063]
[1737897282399,43.776884,255.93,255.92,0.063]
[1737897282711,43.776884,255.93,255.89,0.063]
[1737897282712,23.776884,255.92,255.89,0.063]
[1737897283009,24.16678905,255.92,255.89,0.063]
[1737897283502,0.38990505,255.92,255.89,0.063]
[1737897283905,23.9073,255.93,255.89,0.063]
[1737897283906,20.0,255.93,255.89,0.063]
[1737897284419,20.0,255.92,255.89,0.063]
[1737897284603,44.16678905,255.92,255.89,0.063]
[1737897288129,43.776884,255.92,255.89,0.063]
[1737897288512,3.9069,255.96,255.89,0.063]
[1737897289120,23.776884,255.95,255.89,0.063]
[1737897289421,0.38990505,255.94,255.89,0.063]
[1737897289610,24.16678905,255.94,255.89,0.063]
[1737897289995,0.38990505,255.94,255.89,0.063]
[1737897291116,4.29700505,255.94,255.89,0.063]
[1737897291322,43.776884,255.92,255.89,0.063]
[1737897292718,47.684284,255.92,255.89,0.063]
[1737897298312,43.776884,255.92,255.89,0.063]
[1737897298510,20.0,255.98,255.89,0.063]
[1737897299836,20.0,255.94,255.89,0.063]
[1737897300830,20.0,256.02,255.91,3.9706]
[1737897301035,0.03,255.98,255.91,3.9706]
[1737897301208,20.03,255.98,255.91,3.9706]
[1737897301820,0.03,255.98,255.91,3.9706]
[1737897309521,0.03,255.98,255.92,8.0097]
[1737897311525,0.03,255.98,255.92,1.5762]
[1737897312033,23.776884,255.95,255.91,0.063]
[1737897312240,0.38990505,255.94,255.91,0.063]
[1737897312836,0.03,255.98,255.91,3.9704]
[1737897313363,0.03,255.98,255.92,1.5762]
[1737897313732,0.03,255.98,255.93,3.9073]
[1737897314637,0.03,255.98,255.92,1.5762]
[1737897314839,0.03,255.98,255.91,0.063]
[1737897315855,23.776884,255.97,255.91,0.063]
[1737897317653,20.0,255.94,255.91,0.063]
[1737897317836,23.9072,255.94,255.91,0.063]
[1737897318845,3.9366,255.98,255.91,0.063]
[1737897319055,24.32650505,255.98,255.91,0.063]
[1737897319651,20.0,255.94,255.91,0.063]
[1737897320839,23.776884,255.97,255.91,0.063]
[1737897321049,0.03,255.98,255.91,0.063]
[1737897321278,0.03,255.98,255.91,3.9705]
[1737897322148,0.03,255.98,255.92,7.69]
[1737897323978,0.03,255.98,255.92,11.5973]
[1737897327061,0.03,255.98,255.96,3.9068]
[1737897327863,0.03,255.98,255.96,23.9068]
[1737897340169,0.03,255.98,255.93,13.6752]
[1737897340941,0.03,255.98,255.96,20.0]
[1737897342153,0.03,255.98,255.96,21.0]
[1737897342357,0.03,255.98,255.97,3.9067]
[1737897346173,0.03,255.98,255.97,23.9067]
[1737897346752,0.03,256.12,256.01,20.0]
[1737897346953,0.03,256.12,256.01,1.6266]
[1737897347980,0.03,256.12,256.02,3.9059]
[1737897348377,0.03,256.12,256.05,20.0]
[1737897349772,0.03,256.12,256.06,3.9053]
[1737897351063,0.03,256.12,256.01,1.6266]
[1737897351268,0.03,256.12,256.01,20.0]
[1737897351667,0.03,256.12,256.01,23.9059]
[1737897351982,0.03,256.12,256.02,23.776884]
[1737897352174,0.03,256.12,256.01,33.6711]
[1737897352879,0.03,256.12,256.02,23.776884]
[1737897353182,0.03,256.12,256.03,3.9057]
[1737897357869,0.03,256.12,256.01,20.0]
[1737897358078,20.03,256.12,255.99,20.0]
[1737897358282,7.5857,256.11,255.99,20.0]
[1737897358795,7.5857,256.11,255.97,3.9067]
[1737897359375,3.9047,256.1,255.97,3.9067]
[1737897359890,23.776884,256.09,255.95,21.5675]
[1737897360071,23.776884,256.09,255.94,3.9071]
[1737897360591,20.0,256.06,255.94,3.9071]
[1737897361474,3.9054,256.05,255.94,3.9071]
[1737897361674,3.9054,256.05,255.97,0.063]
[1737897368204,20.0,256.08,255.97,3.9696]
[1737897368710,3.9047,256.1,255.97,3.9696]
[1737897369081,23.776884,256.09,255.97,0.063]
[1737897369304,20.0,256.06,255.97,0.063]
[1737897369978,23.776884,256.05,255.97,0.063]
[1737897370212,3.9056,256.04,255.97,0.063]
[1737897373400,3.9054,256.06,255.97,3.9696]
[1737897373708,23.9052,256.07,255.97,3.9696]
[1737897375603,23.9052,256.07,255.97,0.063]
[1737897376020,20.0,256.06,255.97,0.063]
[1737897376214,23.776884,256.05,255.97,0.063]
[1737897377525,3.9056,256.04,255.97,0.063]
[1737897380128,20.0,256.07,255.97,3.9696]
[1737897380326,3.9048,256.09,255.97,3.9696]
[1737897381927,23.905,256.08,255.97,3.9696]
[1737897384735,0.03,256.09,255.97,5.5497]
[1737897386930,0.03,256.09,255.97,15.3164]
[1737897387121,0.03,256.09,256.0,20.0]
[1737897388021,0.03,256.09,256.01,3.906]
[1737897390811,23.776884,256.08,255.97,1.6431]
[1737897391008,23.776884,256.08,255.97,5.5497]
[1737897391850,0.03,256.09,255.97,5.5497]
[1737897393515,20.03,256.09,255.97,5.5497]
[1737897394443,3.905,256.08,255.97,5.5497]
[1737897394827,23.776884,256.07,255.97,0.063]
[1737897395157,20.0,256.05,255.97,0.063]
[1737897395851,20.0,256.06,255.97,0.063]
[1737897397048,27.682284,256.05,255.97,0.063]
[1737897397248,28.07218905,256.05,255.97,0.063]
[1737897397734,23.776884,256.01,255.97,0.063]
[1737897398853,3.9062,256.0,255.97,0.063]
[1737897400316,23.776884,255.99,255.97,0.063]
[1737897401042,43.776884,255.98,255.97,0.063]
[1737897403157,47.683384,255.98,255.97,0.063]
[1737897406224,3.9065,255.98,255.97,0.063]
[1737897407053,23.9065,255.98,255.97,0.063]
[1737897412063,47.683384,255.98,255.97,0.063]
[1737897420044,3.9065,255.98,255.97,0.063]
[1737897420365,20.0,255.99,255.97,0.063]
[1737897420553,23.9064,255.99,255.97,0.063]
[1737897420755,3.9064,255.99,255.97,0.063]
[1737897420960,23.9062,256.01,255.97,0.063]
[1737897422765,20.0,255.98,255.97,0.063]
[1737897422955,20.0,255.98,255.92,0.063]
[1737897422956,20.0,255.94,255.92,0.063]
[1737897423168,23.776884,255.93,255.92,0.063]
[1737897423664,0.38990505,255.94,255.92,0.063]
[1737897424151,3.9073,255.93,255.92,0.063]
[1737897427366,3.9073,255.93,255.92,0.0001]
[1737897428687,23.776884,255.92,255.91,0.0001]
[1737897428985,24.16678905,255.92,255.91,0.0001]
[1737897430990,43.776884,255.89,255.88,0.0001]
[1737897431162,44.16678905,255.89,255.88,0.0001]
[1737897431766,45.16678905,255.89,255.88,0.0001]
[1737897432077,49.87442828,255.89,255.88,0.0001]
[1737897432671,56.20582828,255.89,255.88,0.0001]
[1737897433178,20.0,255.8,255.79,0.063]
[1737897433472,44.16678905,255.8,255.79,0.063]
[1737897434550,20.0,255.76,255.71,0.063]
[1737897434769,44.16678905,255.76,255.71,0.063]
[1737897435265,48.07668905,255.76,255.71,0.063]
[1737897436480,43.776884,255.72,255.71,0.063]
[1737897436684,44.16678905,255.72,255.71,0.063]
[1737897437667,48.07728905,255.72,255.71,0.063]
[1737897438485,23.9097,255.77,255.71,0.063]
[1737897439559,20.0,255.76,255.71,0.063]
[1737897439763,20.0,255.74,255.71,0.063]
[1737897440181,23.776884,255.73,255.71,0.063]
[1737897440371,23.776884,255.74,255.71,0.063]
[1737897441160,43.776884,255.72,255.71,0.063]
[1737897442585,47.687384,255.72,255.71,0.063]
[1737897443696,47.687384,255.72,255.66,0.063]
[1737897443697,20.0,255.68,255.66,0.063]
[1737897443911,20.0,255.68,255.46,1.0]
[1737897443912,23.776884,255.63,255.51,1.6521]
[1737897444070,23.776884,255.63,255.51,5.5657]
[1737897444264,21.6706,255.72,255.51,5.5657]
[1737897444574,20.0,255.65,255.51,5.5657]
[1737897445303,13.6868,255.72,255.54,20.0]
[1737897445478,20.0,255.69,255.54,20.0]
[1737897445879,3.9105,255.72,255.55,1.6521]
[1737897446106,3.9105,255.72,255.55,2.6521]
[1737897446419,23.776884,255.71,255.57,3.9128]
[1737897447607,20.0,255.68,255.57,3.9128]
[1737897448591,20.0,255.69,255.57,3.9128]
[1737897448801,23.776884,255.68,255.57,3.9128]
[1737897449598,23.776884,255.66,255.57,3.9128]
[1737897451397,27.688384,255.66,255.56,6.5971]
[1737897453810,23.776884,255.66,255.56,10.51]
[1737897457909,27.688384,255.66,255.56,6.5971]
[1737897458407,20.0,255.63,255.55,1.6521]
[1737897459120,23.776884,255.62,255.55,1.6521]
[1737897459328,23.776884,255.62,255.49,7.8642]
[1737897459508,23.776884,255.62,255.56,0.03]
[1737897459906,3.9122,255.61,255.56,0.03]
[1737897460309,23.776884,255.6,255.56,0.03]
[1737897461502,20.0,255.59,255.56,0.03]
[1737897461690,23.776884,255.62,255.56,0.03]
[1737897461691,24.16678905,255.62,255.56,0.03]
[1737897461891,23.776884,255.58,255.56,0.03]
[1737897462098,0.38990505,255.62,255.56,0.03]
[1737897462414,23.776884,255.62,255.56,0.03]
[1737897462607,20.0,255.59,255.56,0.03]
[1737897464933,23.9125,255.59,255.56,0.03]
[1737897465108,23.776884,255.58,255.56,0.03]
[1737897466728,27.689684,255.57,255.56,0.03]
[1737897469722,3.9122,255.61,255.56,0.03]
[1737897469923,3.912,255.63,255.56,0.03]
[1737897470125,20.0,255.64,255.56,0.03]
[1737897470711,0.063,255.66,255.56,0.03]
[1737897470904,0.063,255.66,255.57,1.5187]
[1737897471832,0.063,255.66,255.58,3.9126]
[1737897472027,0.063,255.66,255.57,1.5187]
[1737897472233,0.063,255.66,255.57,5.4314]
[1737897473629,0.063,255.66,255.58,6.318]
[1737897473812,0.063,255.66,255.58,10.2306]
[1737897475729,0.063,255.66,255.58,6.318]
[1737897476116,3.9744,255.66,255.58,6.318]
[1737897476324,23.776884,255.65,255.58,6.318]
[1737897477139,23.776884,255.65,255.57,1.5187]
[1737897477822,20.0,255.62,255.57,1.5187]
[1737897478556,23.9121,255.62,255.57,1.5187]
[1737897480215,23.9121,255.62,255.56,0.03]
[1737897480216,23.776884,255.61,255.56,0.03]
[1737897480417,27.689184,255.61,255.56,0.03]
[1737897482617,23.776884,255.61,255.56,0.03]
[1737897483629,27.689184,255.61,255.56,0.03]
[1737897485747,3.9117,255.64,255.56,0.03]
[1737897486124,3.9745,255.66,255.56,0.03]
[1737897486823,0.063,255.66,255.57,1.6179]
[1737897487948,0.063,255.66,255.58,3.9126]
[1737897488254,0.063,255.66,255.6,20.0]
[1737897488545,0.063,255.66,255.61,6.3097]
[1737897491938,0.063,255.66,255.61,10.2218]
[1737897498538,0.063,255.66,255.62,1.6115]
[1737897499552,0.063,255.66,255.63,3.9119]
[1737897499758,0.063,255.66,255.65,20.0]
[1737897501558,0.063,255.66,255.64,21.0]
[1737897501861,0.03,255.75,255.7,6.1327]
[1737897502957,0.03,255.75,255.73,20.0]
[1737897503554,0.03,255.75,255.74,3.9102]
[1737897504051,0.03,255.75,255.73,20.0]
[1737897505163,0.03,255.75,255.7,10.0434]
[1737897505343,0.03,255.75,255.73,20.0]
[1737897505667,0.03,255.75,255.7,10.0434]
[1737897506249,0.03,255.75,255.69,1.6115]
[1737897511884,0.03,255.75,255.66,3.9113]
[1737897512744,0.03,255.75,255.67,20.0]
[1737897513373,0.03,255.75,255.66,3.9113]
[1737897517376,3.94,255.75,255.66,0.03]
[1737897518151,23.776884,255.74,255.66,0.03]
[1737897518448,3.94,255.75,255.66,0.03]
[1737897519668,23.776884,255.72,255.66,0.03]
[1737897520982,23.776884,255.68,255.66,0.03]
[1737897521878,3.9112,255.67,255.66,0.03]
[1737897522483,20.0,255.7,255.66,0.03]
[1737897522786,1.6664,255.73,255.66,0.03]
[1737897523270,5.5768,255.73,255.66,0.03]
[1737897524871,0.03,255.75,255.66,0.03]
[1737897528056,0.03,255.75,255.68,20.0]
[1737897528748,0.03,255.75,255.7,20.0]
[1737897530562,0.03,255.75,255.71,3.9106]
[1737897532552,0.03,255.75,255.71,4.9106]
[1737897533555,0.03,255.75,255.73,1.0]
[1737897534373,0.03,255.75,255.74,3.9102]
[1737897535279,0.03,255.75,255.73,1.0]
[1737897535674,0.03,255.75,255.71,3.9106]
[1737897542383,0.03,255.75,255.66,0.03]
[1737897542680,20.0,255.69,255.66,0.03]
[1737897542878,23.776884,255.68,255.66,0.03]
[1737897544268,20.0,255.71,255.66,0.03]
[1737897544572,23.776884,255.7,255.66,0.03]
[1737897545090,43.776884,255.67,255.66,0.03]
[1737897545398,23.776884,255.67,255.66,0.03]
[1737897545968,20.0,255.71,255.66,0.03]
[1737897546561,23.776884,255.7,255.66,0.03]
[1737897547990,23.776884,255.68,255.66,0.03]
[1737897549969,3.9111,255.68,255.66,0.03]
[1737897554492,5.48988655,255.68,255.66,0.03]
[1737897555683,20.0,255.71,255.66,0.03]
[1737897556007,83.0,255.74,255.66,0.03]
[1737897557483,86.9102,255.74,255.66,0.03]
[1737897559500,20.0,255.73,255.66,0.03]
[1737897559798,23.9103,255.73,255.66,0.03]
[1737897560184,20.0,255.73,255.66,0.03]
[1737897562076,0.03,255.75,255.66,0.03]
[1737897562280,0.03,255.75,255.66,20.03]
[1737897563071,0.03,255.75,255.7,20.0]
[1737897563284,0.063,255.73,255.7,20.0]
[1737897564196,0.063,255.73,255.72,3.9105]
[1737897564400,0.063,255.73,255.72,4.9105]
[1737897564776,0.063,255.73,255.72,3.9105]
[1737897565186,0.063,255.73,255.72,4.9105]
[1737897565906,0.0001,255.75,255.74,2.0]
[1737897567297,0.0001,255.75,255.74,5.9102]
[1737897568697,0.0001,255.75,255.74,3.9102]
[1737897569102,0.0001,255.75,255.74,23.9102]
[1737897575402,0.0001,255.75,255.74,49.687084]
[1737897577331,0.0001,255.75,255.74,48.687084]
[1737897577537,0.0001,255.75,255.74,49.687084]
[1737897578330,0.0001,255.75,255.74,48.687084]
[1737897578735,0.0001,255.75,255.74,47.687084]
[1737897578906,0.0001,255.75,255.74,48.687084]
[1737897579910,0.063,255.92,255.82,20.0]
[1737897580113,0.063,255.92,255.83,23.776884]
[1737897580506,0.063,255.92,255.86,20.0]
[1737897581636,0.063,255.92,255.87,3.9082]
[1737897584805,0.063,255.92,255.83,3.9088]
[1737897585105,3.9705,255.92,255.83,3.9088]
[1737897587947,3.9705,255.92,255.81,20.0]
[1737897588114,3.9705,255.92,255.81,23.909]
[1737897591452,31.538684,255.91,255.78,3.9096]
[1737897591620,31.92858905,255.91,255.78,3.9096]
[1737897591943,31.538684,255.91,255.78,3.9096]
[1737897592841,3.9077,255.9,255.78,3.9096]
[1737897593342,23.776884,255.89,255.77,20.0]
[1737897594543,7.7618,255.91,255.77,20.0]
[1737897594720,23.776884,255.89,255.77,23.9096]
[1737897595042,20.0,255.88,255.77,3.9096]
[1737897596040,7.7618,255.91,255.77,13.684]
[1737897596243,7.7618,255.91,255.8,20.0]
[1737897596736,7.7618,255.91,255.81,3.9091]
[1737897597833,11.6694,255.91,255.81,3.9091]
[1737897599027,0.063,255.88,255.81,3.9091]
[1737897599429,0.063,255.88,255.74,0.03]
[1737897600949,23.776884,255.87,255.74,0.03]
[1737897601148,23.776884,255.83,255.74,0.03]
[1737897601447,0.38990505,255.82,255.74,0.03]
[1737897601829,23.776884,255.83,255.74,0.03]
[1737897602026,107.16678905,255.83,255.74,0.03]
[1737897602345,23.776884,255.79,255.74,0.03]
[1737897602747,3.9096,255.78,255.74,0.03]
[1737897603244,23.776884,255.77,255.74,0.03]
[1737897603828,0.38990505,255.76,255.74,0.03]
[1737897604137,23.776884,255.77,255.74,0.03]
[1737897604450,83.0,255.78,255.74,0.03]
[1737897605020,10.4079,255.81,255.74,0.03]
[1737897605435,23.776884,255.8,255.74,0.03]
[1737897606249,6.4987,255.81,255.74,0.03]
[1737897608321,83.0,255.84,255.74,0.03]
[1737897608529,3.9083,255.87,255.74,0.03]
[1737897609251,23.776884,255.84,255.74,0.03]
[1737897609550,0.38990505,255.83,255.74,0.03]
[1737897610628,23.776884,255.81,255.74,0.03]
[1737897610955,0.38990505,255.8,255.74,0.03]
[1737897611448,23.776884,255.81,255.74,0.03]
[1737897614956,27.685984,255.81,255.74,0.03]
[1737897615160,0.38990505,255.8,255.74,0.03]
[1737897615547,23.776884,255.77,255.74,0.03]
[1737897616061,23.776884,255.78,255.74,0.03]
[1737897617044,83.0,255.79,255.74,0.03]
[1737897618859,23.776884,255.86,255.74,0.03]
[1737897619058,86.9082,255.87,255.74,0.03]
[1737897620061,23.776884,255.86,255.75,20.0]
[1737897620368,23.776884,255.86,255.76,3.9099]
[1737897621042,27.685284,255.86,255.76,3.9099]
[1737897621862,23.776884,255.82,255.74,0.03]
[1737897622973,27.685884,255.82,255.74,0.03]
[1737897624780,110.685884,255.82,255.74,0.03]
[1737897626771,0.38990505,255.81,255.74,0.03]
[1737897626951,23.776884,255.78,255.74,0.03]
[1737897627473,23.776884,255.76,255.74,0.03]
[1737897627663,24.16678905,255.76,255.74,0.03]
[1737897628675,28.07668905,255.76,255.74,0.03]
[1737897629575,83.0,255.75,255.74,0.03]
[1737897629872,106.776884,255.75,255.74,0.03]
[1737897632557,83.0,255.75,255.74,0.03]
[1737897635092,106.776884,255.75,255.74,0.03]
[1737897635256,110.686884,255.75,255.74,0.03]
[1737897636072,110.186884,255.75,255.74,0.03]
[1737897636669,27.749884,255.75,255.74,0.03]
[1737897640768,0.063,255.75,255.74,0.03]
[1737897662717,86.85365088,255.79,255.74,0.03]
[1737897663094,27.686584,255.78,255.74,0.03]
[1737897666321,82.94415088,255.77,255.74,0.03]
[1737897666522,23.776884,255.76,255.74,0.03]
[1737897666824,27.686884,255.75,255.74,0.03]
[1737897672613,86.85385088,255.77,255.74,0.03]
[1737897673009,20.063,255.79,255.74,0.03]
[1737897673341,23.9725,255.79,255.74,0.03]
[1737897673518,20.063,255.79,255.74,0.03]
[1737897673716,0.063,255.79,255.74,0.03]
[1737897676124,23.776884,255.78,255.74,0.03]
[1737897678034,3.9097,255.77,255.74,0.03]
[1737897679105,3.9099,255.76,255.74,0.03]
[1737897679317,43.776884,255.75,255.74,0.03]
[1737897685135,47.686884,255.75,255.74,0.03]
[1737897687465,48.07678905,255.75,255.74,0.03]
[1737897688856,47.686884,255.75,255.74,0.03]
[1737897689058,48.07678905,255.75,255.74,0.03]
[1737897690031,23.776884,255.74,255.66,0.03]
[1737897690359,23.776884,255.7,255.66,0.03]
[1737897690651,43.776884,255.67,255.66,0.03]
[1737897691858,47.688084,255.67,255.66,0.03]
[1737897694149,54.17258905,255.67,255.66,0.0001]
[1737897694372,1.0,255.61,255.56,0.03]
[1737897694543,23.776884,255.58,255.56,0.03]
[1737897694738,0.38990505,255.57,255.56,0.0001]
[1737897694937,44.16678905,255.57,255.56,0.0001]
[1737897696149,48.07958905,255.57,255.56,0.0001]
[1737897696340,20.0,255.55,255.48,0.03]
[1737897696535,23.776884,255.5,255.48,0.03]
[1737897696768,24.16678905,255.5,255.48,0.03]
[1737897697452,20.38990505,255.5,255.48,0.03]
[1737897697672,20.0,255.5,255.48,0.03]
[1737897697965,20.38990505,255.54,255.48,0.03]
[1737897698162,20.0,255.54,255.48,0.03]
[1737897698468,23.776884,255.53,255.48,0.03]
[1737897698838,83.0,255.54,255.48,0.03]
[1737897700674,20.0,255.66,255.5,20.0]
[1737897701342,23.776884,255.65,255.49,20.03]
[1737897701537,20.0,255.66,255.49,20.03]
[1737897701867,27.688384,255.65,255.5,23.9138]
[1737897702068,23.776884,255.6,255.5,3.9138]
[1737897703769,20.0,255.61,255.49,0.03]
[1737897704065,23.776884,255.61,255.49,20.03]
[1737897704374,23.776884,255.61,255.5,20.0]
[1737897705350,23.776884,255.61,255.51,3.9137]
[1737897706270,27.689084,255.61,255.51,3.9137]
[1737897706445,27.689084,255.61,255.49,0.03]
[1737897706652,20.0,255.58,255.49,3.9439]
[1737897707567,20.0,255.58,255.49,0.03]
[1737897708150,23.776884,255.57,255.49,0.03]
[1737897710279,20.0,255.6,255.49,0.03]
[1737897711975,20.0,255.59,255.49,0.03]
[1737897713954,83.0,255.63,255.5,20.0]
[1737897715275,86.9119,255.63,255.5,20.0]
[1737897716775,86.9119,255.63,255.51,3.9137]
[1737897719677,86.9119,255.63,255.52,7.5917]
[1737897719880,86.9119,255.63,255.53,3.9134]
[1737897720682,86.9749,255.63,255.53,3.9134]
[1737897720879,83.063,255.63,255.53,3.9134]
[1737897721079,0.063,255.63,255.57,1.5419]
[1737897721578,0.063,255.63,255.62,20.0]
[1737897722359,0.063,255.63,255.62,21.6094]
[1737897723258,0.063,255.74,255.69,1.6094]
[1737897723458,0.063,255.74,255.69,2.6094]
[1737897723860,0.063,255.74,255.69,1.6094]
[1737897725682,0.063,255.74,255.7,3.9108]
[1737897729166,0.063,255.74,255.72,3.9104]
[1737897729365,0.063,255.74,255.73,6.477]
[1737897730589,0.0001,255.74,255.73,6.477]
[1737897730964,83.0,255.85,255.76,20.0]
[1737897731184,0.063,255.86,255.76,20.0]
[1737897731396,0.063,255.86,255.77,3.9097]
[1737897732287,0.063,255.86,255.78,1.5274]
[1737897732866,0.0001,255.79,255.78,21.5274]
[1737897733189,0.063,255.86,255.78,21.5274]
[1737897733394,0.063,255.86,255.81,20.0]
[1737897734270,0.063,255.86,255.79,33.683]
[1737897734585,0.063,255.86,255.79,23.9094]
[1737897735265,0.063,255.86,255.83,3.9088]
[1737897743980,0.063,255.86,255.79,81.8]
[1737897744190,0.063,255.86,255.79,85.7093]
[1737897749498,0.063,255.86,255.83,20.0]
[1737897750113,0.063,255.92,255.88,1.6107]
[1737897750879,0.063,255.92,255.91,20.0]
[1737897752411,0.063,255.92,255.91,3.9076]
[1737897752922,20.0,255.82,255.69,20.0]
[1737897753287,25.75158905,255.85,255.69,20.0]
[1737897753489,20.0,255.82,255.66,3.9113]
[1737897754088,20.0,255.82,255.67,20.0]
[1737897754490,23.909,255.82,255.68,3.9111]
[1737897755607,30.099,255.82,255.68,3.9111]
[1737897758412,30.099,255.82,255.68,3.9411]
[1737897759822,3.9093,255.8,255.68,3.9411]
[1737897761623,3.9093,255.8,255.68,0.03]
[1737897761928,20.0,255.76,255.68,0.03]
[1737897762218,83.0,255.78,255.68,0.03]
[1737897763019,3.9097,255.77,255.68,0.03]
[1737897763720,23.776884,255.76,255.68,0.03]
[1737897763921,84.6151,255.75,255.68,0.03]
[1737897765008,3.9102,255.74,255.68,0.03]
[1737897766220,23.776884,255.71,255.68,0.03]
[1737897766414,0.38990505,255.7,255.68,0.03]
[1737897767411,3.9109,255.69,255.68,0.03]
[1737897768026,27.687784,255.69,255.68,0.03]
[1737897771421,3.9109,255.69,255.68,0.03]
[1737897771626,23.9108,255.71,255.68,0.03]
[1737897772023,47.687684,255.71,255.68,0.03]
[1737897779404,24.16678905,255.7,255.68,0.03]
[1737897779605,25.16678905,255.7,255.68,0.0001]
[1737897779811,26.16678905,255.7,255.68,0.0001]
[1737897780034,25.16678905,255.7,255.68,0.0001]
[1737897780410,26.16678905,255.7,255.68,0.0001]
[1737897780807,25.356684,255.69,255.68,0.0001]
[1737897781223,29.267584,255.69,255.68,0.0001]
[1737897783141,29.65748905,255.69,255.68,0.0001]
[1737897784541,20.0,255.7,255.68,0.0001]
[1737897784722,84.5999,255.76,255.68,0.0001]
[1737897784922,83.0,255.76,255.68,0.0001]
[1737897786812,86.9099,255.76,255.68,0.0001]
[1737897788433,23.776884,255.75,255.68,0.0001]
[1737897789329,3.9102,255.74,255.68,0.0001]
[1737897789629,86.91,255.76,255.68,0.0001]
[1737897790714,83.0,255.76,255.68,0.0001]
[1737897794339,83.0,255.81,255.68,0.0001]
[1737897794843,27.686184,255.8,255.68,0.0001]
[1737897796542,20.0,255.77,255.68,0.0001]
[1737897797654,86.9091,255.81,255.68,0.0001]
[1737897798549,83.0,255.81,255.69,1.6497]
[1737897798847,83.0,255.88,255.72,20.0]
[1737897799029,83.0,255.87,255.72,20.0]
[1737897800347,23.776884,255.86,255.72,20.0]
[1737897800540,27.685184,255.86,255.73,3.9103]
[1737897803153,27.685484,255.84,255.73,3.9103]
[1737897805446,27.685484,255.84,255.72,20.0]
[1737897807343,27.685484,255.84,255.72,23.9105]
[1737897807942,83.0,255.85,255.73,20.0]
[1737897808941,83.0,255.85,255.75,20.0]
[1737897809246,86.9086,255.85,255.69,7.8228]
[1737897809427,86.9086,255.85,255.72,20.0]
[1737897809627,23.776884,255.84,255.72,20.0]
[1737897810465,20.0,255.8,255.7,3.9108]
[1737897810630,83.0,255.81,255.69,11.7337]
[1737897811747,3.9093,255.8,255.69,11.7337]